fUSD/lending_fUSD_20260321
["ID","MTS","AMOUNT","RATE_DAILY","PERIOD"]
[408657458,1774057831765,-500.0,0.00013789,2]
[408657459,1774057831774,-500.0,0.00013789,2]
[408657460,1774057831784,-500.0,0.00013789,2]
[408657461,1774057831793,-500.0,0.00013789,2]
[408657462,1774057831803,-500.0,0.00013789,2]
[408657463,1774057831812,-500.0,0.00013789,2]
[408657464,1774057831821,-500.0,0.00013789,2]
[408657465,1774057831831,-500.0,0.00013789,2]
[408657466,1774057831840,-500.0,0.00013789,2]
[408657468,1774057831850,-500.0,0.00013789,2]
[408657470,1774057831859,-500.0,0.00013789,2]
[408657472,1774057831868,-500.0,0.00013789,2]
[408657474,1774057831878,-500.0,0.00013789,2]
[408657476,1774057831887,-500.0,0.00013789,2]
[408657477,1774057831897,-500.0,0.00013789,2]
[408657480,1774057831906,-500.0,0.00013789,2]
[408657482,1774057831915,-500.0,0.00013789,2]
[408657483,1774057831924,-500.0,0.00013789,2]
[408657485,1774057831934,-500.0,0.00013789,2]
[408657488,1774057831943,-500.0,0.00013789,2]
[408657489,1774057831952,-500.0,0.00013789,2]
[408657491,1774057831962,-500.0,0.00013789,2]
[408657493,1774057831971,-500.0,0.00013789,2]
[408657495,1774057831980,-500.0,0.00013789,2]
[408657497,1774057831990,-500.0,0.00013789,2]
[408657499,1774057832000,-500.0,0.00013789,2]
[408657500,1774057832009,-500.0,0.00013789,2]
[408657501,1774057832019,-500.0,0.00013789,2]
[408657502,1774057832029,-500.0,0.00013789,2]
[408657503,1774057832038,-500.0,0.00013789,2]
[408657504,1774057832048,-500.0,0.00013789,2]
[408657505,1774057832059,-500.0,0.00013789,2]
[408657506,1774057832073,-500.0,0.00013789,2]
[408657507,1774057832082,-500.0,0.00013789,2]
[408657508,1774057832092,-500.0,0.00013789,2]
[408657509,1774057832101,-500.0,0.00013789,2]
[408657510,1774057832110,-500.0,0.00013789,2]
[408657511,1774057832119,-500.0,0.00013789,2]
[408657512,1774057832129,-500.0,0.00013789,2]
[408657513,1774057832139,-500.0,0.00013789,2]
[408657514,1774057832148,-500.0,0.00013789,2]
[408657515,1774057832157,-321.13636687,0.00013789,2]
[408657516,1774057832167,-500.0,0.00013789,2]
[408657517,1774057832176,-500.0,0.00013789,2]
[408657518,1774057832185,-500.0,0.00013789,2]
[408657519,1774057832195,-500.0,0.00013789,2]
[408657520,1774057832204,-500.0,0.00013789,2]
[408657521,1774057832224,-500.0,0.00013789,2]
[408657522,1774057832234,-500.0,0.00013789,2]
[408657523,1774057832244,-500.0,0.00013789,2]
[408657524,1774057832253,-500.0,0.00013789,2]
[408657525,1774057832262,-500.0,0.00013789,2]
[408657526,1774057832273,-500.0,0.00013789,2]
[408657527,1774057832283,-500.0,0.00013789,2]
[408657528,1774057832292,-500.0,0.00013789,2]
[408657529,1774057832301,-500.0,0.00013789,2]
[408657530,1774057832310,-500.0,0.00013789,2]
[408657531,1774057832321,-500.0,0.00013789,2]
[408657532,1774057832330,-500.0,0.00013789,2]
[408657533,1774057832340,-500.0,0.00013789,2]
[408657534,1774057832349,-500.0,0.00013789,2]
[408657535,1774057832358,-500.0,0.00013789,2]
[408657536,1774057832368,-346.9220781,0.00013789,2]
[408657537,1774057832377,-500.0,0.00013789,2]
[408657538,1774057832386,-500.0,0.00013789,2]
[408657539,1774057832395,-500.0,0.00013789,2]
[408657540,1774057832404,-500.0,0.00013789,2]
[408657541,1774057832413,-500.0,0.00013789,2]
[408657542,1774057832423,-500.0,0.00013789,2]
[408657543,1774057832432,-500.0,0.00013789,2]
[408657544,1774057832442,-500.0,0.00013789,2]
[408657545,1774057832451,-500.0,0.00013789,2]
[408657546,1774057832461,-138361.04177679,0.0001379,2]
[408657547,1774057832474,-356830.521,0.0001379,2]
[408657548,1774057832485,-30789.0515005,0.0001379,2]
[408657549,1774057832496,-1288.48136887,0.0001379,2]
[408657550,1774057832508,-73548.92036739,0.0001379,2]
[408657551,1774057832519,-473.08133579,0.0001379,2]
[408657553,1774057837488,-581.1401268,0.0001379,2]
[408657554,1774057837503,-340.64224758,0.0001379,2]
[408657555,1774057837542,-1923.9124029,0.0001379,2]
[408657556,1774057837650,-4100.09556354,0.0001379,2]
[408657561,1774057837822,-453.7038441,0.0001379,2]
[408657562,1774057837834,-2102.4628292,0.0001379,2]
[408657573,1774057839699,-6949.98823654,0.0001379,2]
[408657575,1774057839709,-500.37853052,0.00013873,2]
[408657577,1774057839719,-500.64649173,0.00013873,2]
[408657578,1774057839729,-243.49562344,0.00013889,2]
[408657579,1774057839738,-500.0,0.00013889,2]
[408657580,1774057839748,-500.0,0.00013889,2]
[408657581,1774057839758,-580.8989572,0.00013889,2]
[408657582,1774057839767,-500.0,0.00013889,2]
[408657583,1774057839776,-418.25643727,0.00013889,2]
[408657584,1774057839786,-500.0,0.00013889,2]
[408657585,1774057839795,-500.0,0.00013889,2]
[408657586,1774057839805,-472.85163668,0.00013889,2]
[408657587,1774057839814,-500.0,0.00013889,2]
[408657588,1774057839823,-500.0,0.00013889,2]
[408657589,1774057839833,-500.0,0.00013889,2]
[408657590,1774057839842,-500.0,0.00013889,2]
[408657591,1774057839851,-500.0,0.00013889,2]
[408657592,1774057839860,-500.0,0.00013889,2]
[408657593,1774057839869,-500.0,0.00013889,2]
[408657594,1774057839878,-500.0,0.00013889,2]
[408657595,1774057839888,-500.0,0.00013889,2]
[408657596,1774057840079,-500.0,0.00013889,2]
[408657597,1774057840090,-500.0,0.00013889,2]
[408657598,1774057840100,-500.0,0.00013889,2]
[408657599,1774057840109,-500.0,0.00013889,2]
[408657600,1774057840119,-645.79609209,0.00013889,2]
[408657601,1774057840128,-500.0,0.00013889,2]
[408657602,1774057840138,-500.0,0.00013889,2]
[408657603,1774057840148,-500.0,0.00013889,2]
[408657604,1774057840157,-690.4,0.000139,2]
[408657605,1774057840166,-205.04,0.000139,2]
[408657606,1774057840176,-817.28505567,0.00014009,2]
[408657607,1774057840185,-1339.63677739,0.00014009,2]
[408657608,1774057840195,-152.96986947,0.00014063,2]
[408657609,1774057840205,-500.0,0.0001411,2]
[408657610,1774057840215,-817.28505567,0.00014246,2]
[408657611,1774057840224,-1339.63677739,0.00014246,2]
[408657612,1774057840234,-1680.0,0.00014408,2]
[408657613,1774057840243,-817.28505567,0.00014482,2]
[408657614,1774057840252,-1339.63677739,0.00014482,2]
[408657615,1774057840261,-2000.0,0.00014587,2]
[408657616,1774057840271,-225.67016338,0.00014635,2]
[408657617,1774057840280,-204.59,0.00014639,2]
[408657619,1774057840289,-817.28505567,0.00014718,2]
[408657620,1774057840299,-1339.63677739,0.00014718,2]
[408657621,1774057840308,-500.0,0.000148,2]
[408657622,1774057840318,-270.5904036,0.000148,2]
[408657623,1774057840328,-510.46975568,0.000148,2]
[408657624,1774057840337,-500.0,0.000148,2]
[408657625,1774057840347,-658.25,0.00014897,2]
[408657626,1774057840356,-817.28505567,0.00014955,2]
[408657627,1774057840365,-1339.63677739,0.00014955,2]
[408657628,1774057840375,-500.0,0.00015067,2]
[408657629,1774057840384,-501.01523907,0.00015067,2]
[408657630,1774057840394,-568.73940458,0.00015067,2]
[408657631,1774057840404,-500.0,0.00015068,2]
[408657632,1774057840414,-500.0,0.00015151,2]
[408657633,1774057840424,-500.0,0.00015151,2]
[408657634,1774057840433,-500.0,0.00015151,2]
[408657635,1774057840442,-500.0,0.00015151,2]
[408657637,1774057840452,-500.0,0.00015151,2]
[408657638,1774057840461,-500.0,0.00015151,2]
[408657639,1774057840470,-500.0,0.00015151,2]
[408657640,1774057840479,-500.0,0.00015151,2]
[408657641,1774057840488,-500.0,0.00015151,2]
[408657642,1774057840498,-500.0,0.00015151,2]
[408657643,1774057840507,-500.0,0.00015151,2]
[408657644,1774057840516,-500.0,0.00015151,2]
[408657645,1774057840526,-817.28505567,0.00015191,2]
[408657646,1774057840535,-1339.63677739,0.00015191,2]
[408657647,1774057840544,-817.28505567,0.00015427,2]
[408657648,1774057840554,-1339.63677739,0.00015427,2]
[408657649,1774057840563,-350.0,0.00015429,2]
[408657650,1774057840577,-628.75,0.000155,2]
[408657651,1774057840587,-960.0,0.00015507,2]
[408657652,1774057840597,-910.50806359,0.00015615,2]
[408657653,1774057840607,-817.28505567,0.00015664,2]
[408657654,1774057840617,-1339.63677739,0.00015664,2]
[408657655,1774057840627,-500.0,0.00015762,2]
[408657656,1774057840636,-508.74735705,0.00015762,2]
[408657657,1774057840646,-1104.88484829,0.0001584,2]
[408657658,1774057840656,-2351.0,0.00015849,2]
[408657659,1774057840665,-426.86,0.0001585,2]
[408657660,1774057840675,-170.0,0.00015863,2]
[408657661,1774057840685,-229.0,0.00015867,5]
[408657662,1774057840695,-385.0,0.00015867,5]
[408657663,1774057840704,-2000.0,0.0001589,2]
[408657664,1774057840713,-960.0,0.00015895,2]
[408657665,1774057840723,-150.69009231,0.000159,2]
[408657666,1774057840732,-817.28505567,0.000159,2]
[408657667,1774057840742,-1339.63677739,0.000159,2]
[408657668,1774057840752,-335.76881684,0.000159,2]
[408657669,1774057840761,-439.08655911,0.000159,2]
[408657670,1774057840771,-500.0,0.00015973,2]
[408657671,1774057840779,-344.5932573,0.00015973,2]
[408657672,1774057840789,-210.30338749,0.00015973,2]
[408657673,1774057840798,-151.0,0.00015997,2]
[408657674,1774057840807,-6827.8350744,0.00015998,2]
[408657675,1774057840817,-2206.8731249,0.00015998,2]
[408657676,1774057840827,-2001.0675729,0.00015998,2]
[408657677,1774057840836,-9781.3336936,0.00015998,2]
[408657678,1774057840846,-974.340777,0.00015998,2]
[408657679,1774057840855,-514.03752025,0.00015999,2]
[408657680,1774057840865,-3796947.23201275,0.00016,2]
[408657681,1774057840878,-1407.52319047,0.00016,2]
[408657682,1774057840889,-336.7928466,0.00016,2]
[408657683,1774057840906,-1810.91461116,0.00016,2]
[408657684,1774057840930,-1940.47712791,0.00016,2]
[408657688,1774057842568,-362036.83073402,0.00016,2]
[408657689,1774057842578,-272.91,0.00016,2]
[408657690,1774057842587,-151.0,0.00016,2]
[408657691,1774057842598,-394.0,0.00016,2]
[408657692,1774057842607,-200.0,0.00016,2]
[408657693,1774057842617,-1000.0,0.00016,2]
[408657694,1774057842627,-1000.0,0.00016,2]
[408657695,1774057842636,-1000.0,0.00016,2]
[408657696,1774057842646,-1000.0,0.00016,2]
[408657697,1774057842656,-1000.0,0.00016,2]
[408657698,1774057842666,-1000.0,0.00016,2]
[408657699,1774057842676,-1005.36370517,0.00016,2]
[408657700,1774057842686,-200.0,0.00016,2]
[408657701,1774057842696,-200.0,0.00016,2]
[408657702,1774057842706,-1000.0,0.00016,2]
[408657703,1774057842716,-1000.0,0.00016,2]
[408657704,1774057842725,-1000.0,0.00016,2]
[408657705,1774057842735,-1000.0,0.00016,2]
[408657706,1774057842744,-1000.0,0.00016,2]
[408657707,1774057842754,-329.35464996,0.00016,2]
[408657708,1774057842764,-151.0,0.00016,2]
[408657709,1774057842774,-151.0,0.00016,2]
[408657710,1774057842783,-152.259942,0.00016,2]
[408657711,1774057842793,-2000.0,0.00016,2]
[408657712,1774057842803,-200.0,0.00016,2]
[408657713,1774057842813,-2419.0,0.00016029,2]
[408657714,1774057842823,-2419.0,0.00016058,2]
[408657715,1774057842832,-4225.0,0.00016091,2]
[408657716,1774057842844,-240.409329,0.00016109,7]
[408657717,1774057842853,-219.299888,0.00016109,7]
[408657718,1774057842863,-356.467285,0.0001611,7]
[408657719,1774057842872,-426.86,0.0001613,2]
[408657720,1774057842882,-150.0,0.00016136,14]
[408657721,1774057842891,-2419.0,0.0001614,2]
[408657722,1774057842901,-2419.0,0.00016146,2]
[408657723,1774057842911,-200.0,0.0001616,2]
[408657724,1774057842922,-200.0,0.0001616,2]
[408657725,1774057842931,-200.0,0.0001616,2]
[408657727,1774057842941,-200.0,0.0001616,2]
[408657728,1774057842950,-2419.0,0.00016196,2]
[408657729,1774057842960,-2000.0,0.000162,2]
[408657730,1774057842969,-450.0,0.00016247,2]
[408657731,1774057842980,-2419.0,0.00016261,2]
[408657732,1774057842989,-2419.0,0.00016275,2]
[408657734,1774057842999,-960.0,0.00016282,2]
[408657736,1774057843010,-2419.0,0.00016315,2]
[408657738,1774057843019,-200.0,0.00016322,2]
[408657740,1774057843029,-200.0,0.00016322,2]
[408657741,1774057843039,-200.0,0.00016322,2]
[408657743,1774057843049,-200.0,0.00016322,2]
[408657745,1774057843062,-200.0,0.0001634,2]
[408657746,1774057843072,-4225.0,0.00016366,2]
[408657747,1774057843082,-150.0,0.000164,2]
[408657748,1774057843091,-213.0,0.000164,2]
[408657749,1774057843101,-302.46,0.000164,2]
[408657750,1774057843110,-354.36984265,0.000164,2]
[408657751,1774057843120,-2000.0,0.000164,2]
[408657752,1774057843131,-2000.0,0.0001641,2]
[408657753,1774057843140,-426.86859816,0.00016435,2]
[408657754,1774057843151,-500.0,0.00016438,2]
[408657756,1774057843161,-385.9746403,0.00016438,2]
[408657758,1774057845385,-114.0253597,0.00016438,2]
[408657759,1774057845395,-500.0,0.00016438,2]
[408657760,1774057845404,-500.0,0.00016438,2]
[408657761,1774057845414,-452.32747908,0.00016438,2]
[408657762,1774057845423,-500.0,0.00016438,2]
[408657763,1774057845433,-500.0,0.00016438,2]
[408657764,1774057845443,-500.0,0.00016438,2]
[408657765,1774057845452,-500.0,0.00016438,2]
[408657766,1774057845462,-500.0,0.00016438,2]
[408657767,1774057845471,-500.0,0.00016438,2]
[408657768,1774057845480,-500.0,0.00016438,2]
[408657769,1774057845490,-500.0,0.00016438,2]
[408657770,1774057845499,-500.0,0.00016438,2]
[408657771,1774057845509,-500.0,0.00016438,2]
[408657772,1774057845518,-500.0,0.00016438,2]
[408657773,1774057845528,-500.0,0.00016438,2]
[408657774,1774057845538,-500.0,0.00016438,2]
[408657775,1774057845547,-500.0,0.00016438,2]
[408657776,1774057845556,-500.0,0.00016438,2]
[408657777,1774057845567,-500.0,0.00016438,2]
[408657778,1774057845576,-515.48665057,0.00016438,2]
[408657779,1774057845586,-151.0,0.00016438,2]
[408657780,1774057845595,-151.0,0.00016438,2]
[408657781,1774057845603,-151.0,0.00016438,2]
[408657782,1774057845613,-151.0,0.00016438,2]
[408657783,1774057845622,-151.0,0.00016438,2]
[408657784,1774057845631,-186.328249,0.00016438,2]
[408657785,1774057845641,-186.328249,0.00016438,2]
[408657786,1774057845650,-186.328249,0.00016438,2]
[408657787,1774057845659,-186.328249,0.00016438,2]
[408657788,1774057845669,-890.565163,0.00016438,2]
[408657789,1774057845678,-890.565163,0.00016438,2]
[408657790,1774057845688,-890.565163,0.00016438,2]
[408657791,1774057845697,-890.565163,0.00016438,2]
[408657792,1774057845707,-200.0,0.00016485,2]
[408657793,1774057845717,-200.0,0.00016485,2]
[408657794,1774057845727,-200.0,0.00016485,2]
[408657795,1774057845737,-200.0,0.00016485,2]
[408657796,1774057845747,-236.0,0.000165,7]
[408657797,1774057845757,-230.52938071,0.00016521,2]
[408657798,1774057845766,-658.25,0.00016552,2]
[408657799,1774057845776,-500.0,0.0001657,2]
[408657800,1774057845786,-363.00592176,0.000166,2]
[408657801,1774057845795,-2000.0,0.000166,2]
[408657802,1774057845805,-200.0,0.0001665,2]
[408657803,1774057845815,-960.0,0.0001667,2]
[408657804,1774057845825,-367.08928687,0.00016693,2]
[408657805,1774057845834,-353.04734738,0.00016705,2]
[408657806,1774057845844,-180.69,0.00016789,2]
[408657807,1774057845854,-185.28,0.00016789,2]
[408657808,1774057845866,-2000.0,0.000168,2]
[408657809,1774057845876,-500.0,0.0001697,2]
[408657810,1774057845886,-400.0,0.0001697,2]
[408657811,1774057845895,-2000.0,0.00017,2]
[408657812,1774057845904,-960.0,0.00017058,2]
[408657813,1774057845914,-168.0,0.0001729,2]
[408657814,1774057845923,-1069.0,0.00017433,2]
[408657815,1774057845932,-173.68,0.00017479,2]
[408657816,1774057845942,-450.0,0.00017616,2]
[408657817,1774057845951,-167.33,0.00017819,2]
[408657818,1774057845960,-153.57,0.0001794,2]
[408657819,1774057845970,-400.0,0.0001797,2]
[408657820,1774057845979,-380.0,0.00018,2]
[408657821,1774057845989,-1523.4959336,0.00018025,2]
[408657822,1774057845998,-2182.5105535,0.00018025,2]
[408657823,1774057846009,-658.25,0.00018207,2]
[408657824,1774057846018,-2000.0,0.00018233,2]
[408657825,1774057846028,-339.9378916,0.00018478,2]
[408657827,1774057846038,-486.9839293,0.00018478,2]
[408657829,1774057846047,-652.49274667,0.00018521,2]
[408657830,1774057846057,-167.92,0.00019197,2]
[408657831,1774057846066,-167.92,0.00019197,2]
[408657832,1774057846076,-2000.0,0.000192,2]
[408657833,1774057846086,-180.69,0.00019307,2]
[408657834,1774057846095,-306.0,0.00019402,5]
[408657835,1774057846105,-405.0,0.00019402,5]
[408657836,1774057846114,-658.25,0.00019862,2]
[408657837,1774057846123,-10087.04933841,0.0002,30]
[408657838,1774057846133,-500.0,0.0002,2]
[408657839,1774057846142,-500.0,0.0002,2]
[408657840,1774057846152,-234.85907597,0.0002,2]
[408657841,1774057846161,-5003.59226049,0.0002,60]
[408657842,1774057846171,-2000.0,0.00020057,2]
[408657843,1774057846180,-1060.97,0.00020145,2]
[408657844,1774057846190,-299.99,0.00020145,7]
[408657845,1774057846199,-165.0,0.000209,2]
[408657846,1774057846209,-160.0,0.00021089,2]
[408657847,1774057846219,-979.16666667,0.00021089,2]
[408657848,1774057846228,-153.57,0.00021102,2]
[408657849,1774057846238,-152.31147073,0.00021577,16]
[408657850,1774057846248,-490.35,0.00021688,2]
[408657851,1774057846258,-2000.0,0.0002188,2]
[408657852,1774057846267,-165.0,0.000219,2]
[408657853,1774057846277,-5000.0,0.00021918,2]
[408657854,1774057846286,-301.02,0.00021962,2]
[408657855,1774057846295,-180.69,0.00022665,2]
[408657856,1774057846306,-2000.0,0.000229,2]
[408657857,1774057846315,-165.0,0.000229,2]
[408657858,1774057846325,-180.12558766,0.00023057,2]
[408657859,1774057846334,-652.49274667,0.0002327,2]
[408657860,1774057846343,-527.32,0.00023617,2]
[408657861,1774057846353,-165.0,0.000239,2]
[408657862,1774057846361,-167.93,0.00023997,2]
[408657863,1774057846371,-153.57,0.00024263,2]
[408657864,1774057846381,-621.682,0.0002448,2]
[408657865,1774057846390,-163.58,0.0002448,2]
[408657866,1774057846399,-1047.142,0.0002448,2]
[408657867,1774057846408,-274.428,0.0002448,2]
[408657868,1774057846418,-2882.639,0.0002448,2]
[408657869,1774057846427,-3772.693,0.0002448,2]
[408657870,1774057846437,-1120.19116469,0.000245,2]
[408657871,1774057846447,-1000.0,0.00024658,2]
[408657872,1774057846456,-165.0,0.000249,2]
[408657873,1774057846465,-979.16666667,0.00025,30]
[408657874,1774057846475,-165.13237901,0.000259,2]
[408657875,1774057846484,-2000.0,0.000266,2]
[408657876,1774057846494,-242.58,0.00027397,7]
[408657877,1774057846504,-1000.0,0.00027397,20]
[408657878,1774057846514,-300.0,0.00027397,2]
[408657879,1774057846524,-13159.33,0.00027397,10]
[408657880,1774057846533,-22533.52,0.00027397,10]
[408657881,1774057846543,-18777.93,0.00027397,10]
[408657882,1774057846553,-160.76642881,0.000274,30]
[408657883,1774057846563,-979.16666667,0.000274,10]
[408657884,1774057846573,-153.57,0.00027424,2]
[408657885,1774057846584,-150.0,0.0002748,2]
[408657886,1774057846593,-1000.0,0.00028,2]
[408657887,1774057846603,-652.49274667,0.00028018,2]
[408657888,1774057846612,-998.0,0.000285,2]
[408657889,1774057846622,-581.0,0.000285,2]
[408657890,1774057846632,-364.45,0.000291,120]
[408657891,1774057846641,-152.0,0.00029127,3]
[408657892,1774057846651,-152.55608645,0.00029354,42]
[408657893,1774057846660,-3950.44864836,0.0003,2]
[408657894,1774057846674,-480.45833963,0.0003,2]
[408657895,1774057846685,-467.74106694,0.0003,2]
[408657896,1774057846696,-2634.71207514,0.0003,2]
[408657897,1774057846706,-159.5031222,0.0003013,2]
[408657898,1774057846715,-528.67123727,0.00030135,60]
[408657899,1774057846725,-180.69,0.0003022,2]
[408657900,1774057846734,-2000.0,0.000303,2]
[408657901,1774057846743,-528.67123727,0.00030409,60]
[408657902,1774057846753,-153.57,0.00030585,2]
[408657903,1774057846762,-528.67123727,0.00030683,60]
[408657904,1774057846771,-528.67123727,0.00030957,60]
[408657905,1774057846781,-7556.37560494,0.00031,2]
[408657906,1774057846792,-1740.70695078,0.00031,2]
[408657907,1774057846804,-505.0,0.00031,2]
[408657908,1774057846815,-249.95324692,0.00031,2]
[408657909,1774057846824,-351.76175496,0.00031231,60]
[408657910,1774057846839,-176.9094823,0.00031231,60]
[408657911,1774057846848,-335.76881683,0.00031456,2]
[408657912,1774057846858,-439.08655911,0.00031456,2]
[408657913,1774057846868,-528.67123726,0.00031505,60]
[408657914,1774057846878,-202.56177621,0.0003178,60]
[408657922,1774059031565,-160.0,0.000126,2]
[408657923,1774059031574,-253.0,0.000126,2]
[408657924,1774059031583,-41.11874776,0.0001267,2]
[408657926,1774059031594,-242.5673215,0.0001267,2]
[408657927,1774059031604,-109.39016495,0.00012739,2]
[408657928,1774059031615,-1514.24583505,0.00012739,2]
[408657929,1774059031624,-731.63541719,0.00012899,2]
[408657930,1774059031635,-1824.53128281,0.00012899,2]
[408657931,1774059031644,-500.0,0.00012998,2]
[408657932,1774059031653,-549.21959122,0.00012998,2]
[408657933,1774059031663,-500.0,0.00012998,2]
[408657934,1774059031672,-500.0,0.00012998,2]
[408657935,1774059031681,-500.0,0.00012998,2]
[408657936,1774059031690,-517.16893006,0.00012998,2]
[408657937,1774059031699,-500.0,0.00012998,2]
[408657938,1774059031709,-500.0,0.00012998,2]
[408657939,1774059031718,-371.99362257,0.00012998,2]
[408657940,1774059031730,-128.00637743,0.00012998,2]
[408657941,1774059031740,-480.85935464,0.00012998,2]
[408657942,1774059031749,-168.32035292,0.00012998,2]
[408657943,1774059031760,-3433.76241451,0.00012999,2]
[408657976,1774059037631,-7303.35412711,0.00012999,2]
[408657977,1774059037893,-25010.34298616,0.00012999,2]
[408657995,1774059040189,-644.20590704,0.00012999,2]
[408657997,1774059042642,-506407.93396993,0.00012999,2]
[408657998,1774059042654,-900.05641542,0.00012999,2]
[408657999,1774059042695,-2802.54476004,0.00012999,2]
[408658101,1774059062068,200.0,1.25e-05,2]
[408658102,1774059291612,300.0,0.00012898,120]
[408658103,1774059672236,335.0,0.000163,120]
[408658114,1774060231815,-200.0,0.00011,2]
[408658115,1774060231827,-56.43587715,0.00012,2]
[408658116,1774060231921,-143.56412285,0.00012,2]
[408658117,1774060231930,-250.0,0.000121,2]
[408658118,1774060231939,-195.01,0.000122,2]
[408658119,1774060231949,-200.0,0.000123,2]
[408658120,1774060231958,-200.0,0.000124,2]
[408658128,1774060232151,-208.0,0.000125,2]
[408658129,1774060232160,-509.480362,0.00013,15]
[408658130,1774060232170,-573.5514041,0.00013034,2]
[408658131,1774060232179,-523.0,0.000133,2]
[408658132,1774060232188,-500.0,0.00013698,2]
[408658133,1774060232197,-500.0,0.00013789,2]
[408658134,1774060232206,-360.26,0.00014438,2]
[408658135,1774060232215,-1063.83975939,0.00015183,2]
[408658136,1774060232224,-206.0594568,0.000159,2]
[408658137,1774060232233,-978.02726912,0.000159,2]
[408658138,1774060232242,-167.88440842,0.000159,2]
[408658139,1774060232251,-133708.18865884,0.000159,2]
[408658147,1774060237867,-1691.84149511,0.000159,2]
[408658148,1774060237922,-706.25307798,0.000159,2]
[408658149,1774060237978,-561.11581165,0.000159,2]
[408658167,1774060240249,-10880.74172492,0.000159,2]
[408658168,1774060240261,-172413.3177315,0.000159,2]
[408658169,1774060240271,-3345.35783431,0.000159,2]
[408658170,1774060240280,-2500.0,0.000159,2]
[408658171,1774060240289,-258.0,0.00015999,2]
[408658172,1774060240299,-500.0,0.00015999,2]
[408658173,1774060240308,-234.45371385,0.00015999,2]
[408658174,1774060240317,-390.79654778,0.00015999,2]
[408658175,1774060240326,-336.60154825,0.00015999,2]
[408658176,1774060240336,-3655687.51781609,0.00016,2]
[408658177,1774060240347,-666.34733706,0.00016,2]
[408658184,1774060243202,-300.0,0.00016,2]
[408658185,1774060243214,-471.66069357,0.00016,2]
[408658199,1774060245996,-7892.035199,0.00016,2]
[408658200,1774060246051,-883.93612572,0.00016,2]
[408658204,1774061431979,-523.39594,0.000133,2]
[408658205,1774061431988,-76.60406,0.00013877,2]
[408658206,1774061432000,-223.39594,0.00013877,2]
[408658207,1774061432011,-300.0,0.00013877,2]
[408658208,1774061432021,-301.81028666,0.00013877,2]
[408658209,1774061432030,-2500.0,0.00013877,2]
[408658215,1774061432251,-212.0,0.00013912,2]
[408658217,1774061432265,-300.0,0.00013912,2]
[408658220,1774061432275,-1200.0,0.00013912,2]
[408658222,1774061432285,-600.0,0.00013913,2]
[408658223,1774061432294,-600.0,0.00013913,2]
[408658225,1774061432303,-600.0,0.00013913,2]
[408658228,1774061432314,-600.0,0.00013913,2]
[408658230,1774061432323,-2500.0,0.00013938,2]
[408658231,1774061432333,-672.82647538,0.00013938,2]
[408658232,1774061432343,-300.0,0.00014064,2]
[408658233,1774061432353,-516.0,0.00014064,2]
[408658234,1774061432363,-166.66,0.00014169,2]
[408658235,1774061432372,-166.66,0.00014468,2]
[408658236,1774061432381,-150.0,0.00014629,2]
[408658237,1774061432391,-2500.0,0.0001463,2]
[408658238,1774061432402,-600.0,0.0001463,2]
[408658239,1774061432411,-300.0,0.0001463,2]
[408658240,1774061432421,-2500.0,0.0001463,2]
[408658241,1774061432430,-200.0,0.00014675,2]